lending/lending_fUSD_20240411
["ID","MTS","AMOUNT","RATE_DAILY","PERIOD"]
[322162432,1712859076162,-2308.02,0.00030684,2]
[322162433,1712859076173,-2330.67,0.00030684,2]
[322162434,1712859076186,-500.0,0.00030684,2]
[322162435,1712859076196,-1499.0,0.00030684,2]
[322162436,1712859076205,-24863.87,0.00030684,2]
[322162437,1712859076215,-1559.2,0.00030684,2]
[322162438,1712859076225,-2534.45,0.00030684,2]
[322162439,1712859076235,-5362.21,0.00030684,2]
[322162440,1712859076245,-3624.03,0.00030684,2]
[322162441,1712859076254,-500.0,0.00030684,2]
[322162442,1712859076263,-7483.96,0.00030684,2]
[322162443,1712859076273,-990.63,0.00030684,2]
[322162444,1712859076282,-500.0,0.00030684,2]
[322162445,1712859076292,-500.0,0.00030684,2]
[322162446,1712859076302,-500.0,0.00030684,2]
[322162447,1712859076311,-500.0,0.00030684,2]
[322162448,1712859076322,-500.0,0.00030684,2]
[322162449,1712859076332,-500.0,0.00030684,2]
[322162450,1712859076342,-24426.79,0.00030684,2]
[322162451,1712859076351,-5280.72,0.00030684,2]
[322162452,1712859076361,-633.11,0.00030684,2]
[322162453,1712859076370,-2169.06,0.00030684,2]
[322162454,1712859076379,-3975.7,0.00030684,2]
[322162455,1712859076389,-500.0,0.00030684,2]
[322162456,1712859076398,-500.0,0.00030684,2]
[322162457,1712859076409,-500.0,0.00030684,2]
[322162458,1712859076418,-1012.11,0.00030684,2]
[322162459,1712859076428,-9382.4,0.00030684,2]
[322162460,1712859076437,-7515.4,0.00030684,2]
[322162461,1712859076447,-4835.96,0.00030684,2]
[322162462,1712859076458,-500.0,0.00030684,2]
[322162463,1712859076467,-500.0,0.00030684,2]
[322162464,1712859076477,-536.82727536,0.00030684,2]
[322162465,1712859076486,-500.0,0.00030684,2]
[322162466,1712859076496,-1254.87,0.00030684,2]
[322162467,1712859076505,-500.0,0.00030684,2]
[322162468,1712859076515,-1736.38,0.00030684,2]
[322162469,1712859076525,-64944.18,0.00030684,2]
[322162470,1712859076534,-2414.5,0.00030684,2]
[322162471,1712859076543,-500.0,0.00030684,2]
[322162472,1712859076553,-500.0,0.00030684,2]
[322162473,1712859076563,-500.0,0.00030684,2]
[322162474,1712859076574,-3208.84,0.00030684,2]
[322162475,1712859076583,-500.0,0.00030684,2]
[322162476,1712859076593,-500.0,0.00030684,2]
[322162477,1712859076603,-3757.19,0.00030684,2]
[322162478,1712859076613,-500.0,0.00030684,2]
[322162479,1712859076622,-3212.03,0.00030684,2]
[322162480,1712859076631,-1215.21,0.00030684,2]
[322162481,1712859076641,-23618.77,0.00030684,2]
[322162482,1712859076650,-500.0,0.00030684,2]
[322162483,1712859076659,-500.0,0.00030684,2]
[322162484,1712859076669,-500.0,0.00030684,2]
[322162485,1712859076678,-11121.78,0.00030684,2]
[322162486,1712859076688,-2847.42,0.00030684,2]
[322162487,1712859076698,-607.73,0.00030684,2]
[322162488,1712859076707,-1659.81,0.00030684,2]
[322162489,1712859076719,-614.23025427,0.00030684,2]
[322162490,1712859076730,-500.0,0.00030684,2]
[322162491,1712859076740,-519.16,0.00030684,2]
[322162492,1712859076750,-500.0,0.00030684,2]
[322162493,1712859076760,-3817.27,0.00030684,2]
[322162494,1712859076770,-500.0,0.00030684,2]
[322162495,1712859076780,-4430.13,0.00030684,2]
[322162496,1712859076790,-881.83,0.00030684,2]
[322162497,1712859076799,-2070.8,0.00030684,2]
[322162498,1712859076809,-1242.34,0.00030684,2]
[322162499,1712859076820,-500.0,0.00030684,2]
[322162500,1712859076829,-553.26,0.00030684,2]
[322162501,1712859076839,-2359.07,0.00030684,2]
[322162502,1712859076848,-5478.57,0.00030684,2]
[322162503,1712859076858,-570.84853379,0.00030684,2]
[322162504,1712859076868,-5363.4,0.00030684,2]
[322162505,1712859076878,-1652.23,0.00030684,2]
[322162506,1712859076888,-500.0,0.00030684,2]
[322162507,1712859076898,-500.0,0.00030684,2]
[322162508,1712859076907,-3458.19,0.00030684,2]
[322162509,1712859076917,-3303.8,0.00030684,2]
[322162510,1712859076927,-1014.09,0.00030684,2]
[322162511,1712859076937,-5089.88,0.00030684,2]
[322162512,1712859076947,-613.29,0.00030684,2]
[322162513,1712859076957,-500.0,0.00030684,2]
[322162514,1712859076967,-542.77,0.00030684,2]
[322162515,1712859076977,-6748.66,0.00030684,2]
[322162516,1712859076987,-1713.18,0.00030684,2]
[322162517,1712859076997,-2433.24,0.00030684,2]
[322162518,1712859077006,-3692.07,0.00030684,2]
[322162519,1712859077015,-1772.15,0.00030684,2]
[322162520,1712859077025,-1518.78,0.00030684,2]
[322162521,1712859077034,-3806.39,0.00030684,2]
[322162522,1712859077044,-500.0,0.00030684,2]
[322162523,1712859077054,-3863.62,0.00030684,2]
[322162524,1712859077063,-6009.94,0.00030684,2]
[322162525,1712859077074,-5797.34,0.00030684,2]
[322162526,1712859077083,-500.0,0.00030684,2]
[322162527,1712859077093,-6871.95,0.00030684,2]
[322162528,1712859077102,-500.0,0.00030684,2]
[322162529,1712859077112,-2365.82,0.00030684,2]
[322162530,1712859077123,-691.89,0.00030684,2]
[322162531,1712859077132,-1950.23,0.00030684,2]
[322162532,1712859077144,-1008.24,0.00030684,2]
[322162533,1712859077153,-3944.23,0.00030684,2]
[322162534,1712859077163,-500.0,0.00030684,2]
[322162535,1712859077174,-500.0,0.00030684,2]
[322162536,1712859077183,-2642.88,0.00030684,2]
[322162537,1712859077193,-837.23,0.00030684,2]
[322162538,1712859077203,-6098.13,0.00030684,2]
[322162539,1712859077212,-500.0,0.00030684,2]
[322162540,1712859077222,-3864.78,0.00030684,2]
[322162541,1712859077232,-500.0,0.00030684,2]
[322162542,1712859077462,-8593.51,0.00030684,2]
[322162543,1712859077480,-11186.0,0.00030684,2]
[322162544,1712859077489,-699.94,0.00030684,2]
[322162545,1712859077499,-9373.76,0.00030684,2]
[322162546,1712859077508,-2592.27,0.00030684,2]
[322162547,1712859077517,-500.0,0.00030684,2]
[322162548,1712859077527,-500.0,0.00030684,2]
[322162549,1712859077536,-511.95,0.00030684,2]
[322162550,1712859077546,-500.0,0.00030684,2]
[322162551,1712859077557,-500.0,0.00030684,2]
[322162552,1712859077568,-2818.52,0.00030684,2]
[322162553,1712859077577,-500.0,0.00030684,2]
[322162554,1712859077587,-500.0,0.00030684,2]
[322162555,1712859077597,-1128.79,0.00030684,2]
[322162556,1712859077606,-860.75,0.00030684,2]
[322162557,1712859077615,-592.2,0.00030684,2]
[322162558,1712859077625,-4015.61,0.00030684,2]
[322162559,1712859077634,-500.0,0.00030684,2]
[322162560,1712859077644,-4409.59,0.00030684,2]
[322162561,1712859077654,-1415.51,0.00030684,2]
[322162562,1712859077664,-6263.39,0.00030684,2]
[322162563,1712859077674,-8402.81,0.00030684,2]
[322162564,1712859077683,-703.26,0.00030684,2]
[322162565,1712859077693,-500.0,0.00030684,2]
[322162566,1712859077702,-829.9,0.00030684,2]
[322162567,1712859077712,-500.0,0.00030684,2]
[322162568,1712859077731,-554.03,0.00030684,2]
[322162569,1712859077742,-40649.36,0.00030684,2]
[322162570,1712859077753,-3653.41,0.00030684,2]
[322162571,1712859077764,-2830.28,0.00030684,2]
[322162572,1712859077775,-5978.51,0.00030684,2]
[322162573,1712859077786,-976.65,0.00030684,2]
[322162574,1712859077796,-520.21,0.00030684,2]
[322162575,1712859077806,-500.0,0.00030684,2]
[322162576,1712859077816,-575.21,0.00030684,2]
[322162577,1712859077826,-795.16,0.00030684,2]
[322162578,1712859077837,-510.80003629,0.00030685,30]
[322162579,1712859077846,-200.0,0.00030714,2]
[322162580,1712859077856,-1500.0,0.00030724,2]
[322162581,1712859077867,-150.0,0.00030728,2]
[322162582,1712859077876,-1500.0,0.00030738,2]
[322162583,1712859077886,-1500.0,0.00030755,2]
[322162584,1712859077895,-1500.0,0.0003077,2]
[322162585,1712859077905,-8082.79077788,0.00030776,2]
[322162586,1712859077915,-510.80003629,0.00030795,30]
[322162587,1712859077925,-1500.0,0.00030841,2]
[322162588,1712859077935,-2594.04942798,0.00030858,5]
[322162589,1712859077944,-770.97059005,0.00030858,2]
[322162590,1712859077954,-728.7601133,0.00030858,2]
[322162591,1712859077963,-9964.54291809,0.00030858,2]
[322162592,1712859077973,-150.0,0.000309,2]
[322162593,1712859077983,-1500.0,0.00030911,2]
[322162594,1712859077992,-510.80003629,0.00030932,30]
[322162595,1712859078002,-1500.0,0.00030955,2]
[322162596,1712859078012,-500.0,0.00030958,2]
[322162597,1712859078021,-500.0,0.00030958,2]
[322162598,1712859078032,-500.0,0.00030958,2]
[322162599,1712859078042,-240.04331075,0.00030958,2]
[322162600,1712859078051,-500.0,0.00030958,2]
[322162601,1712859078061,-508.38316532,0.00030958,2]
[322162602,1712859078072,-297.0101391,0.00030958,2]
[322162603,1712859078081,-458.50586499,0.00030958,2]
[322162604,1712859078091,-545.9941456,0.00030958,2]
[322162605,1712859078101,-1102.11,0.00030958,2]
[322162606,1712859078111,-500.0,0.00030958,2]
[322162607,1712859078121,-500.0,0.00030958,2]
[322162608,1712859078134,-500.0,0.00030958,2]
[322162609,1712859078143,-521.83,0.00030958,2]
[322162610,1712859078153,-500.0,0.00030958,2]
[322162611,1712859078162,-500.0,0.00030958,2]
[322162612,1712859078173,-500.0,0.00030958,2]
[322162613,1712859078183,-521.57,0.00030958,2]
[322162614,1712859078193,-500.0,0.00030958,2]
[322162615,1712859078202,-500.0,0.00030958,2]
[322162616,1712859078212,-665.4,0.00030958,2]
[322162617,1712859078223,-500.0,0.00030958,2]
[322162618,1712859078233,-500.0,0.00030958,2]
[322162619,1712859078242,-500.0,0.00030958,2]
[322162620,1712859078251,-500.0,0.00030958,2]
[322162621,1712859078261,-500.0,0.00030958,2]
[322162622,1712859078271,-500.0,0.00030958,2]
[322162623,1712859078281,-500.0,0.00030958,2]
[322162624,1712859078291,-1245.45,0.00030958,2]
[322162625,1712859078300,-500.0,0.00030958,2]
[322162626,1712859078311,-500.0,0.00030958,2]
[322162627,1712859078322,-500.0,0.00030958,2]
[322162628,1712859078331,-500.0,0.00030958,2]
[322162629,1712859078341,-500.0,0.00030958,2]
[322162630,1712859078351,-500.0,0.00030958,2]
[322162631,1712859078360,-500.0,0.00030958,2]
[322162632,1712859078370,-500.0,0.00030958,2]
[322162633,1712859078379,-748.14,0.00030958,2]
[322162634,1712859078389,-500.0,0.00030958,2]
[322162635,1712859078399,-500.0,0.00030958,2]
[322162636,1712859078408,-500.0,0.00030958,2]
[322162637,1712859078418,-500.0,0.00030958,2]
[322162638,1712859078428,-944.43,0.00030958,2]
[322162639,1712859078438,-526.1,0.00030958,2]
[322162640,1712859078447,-500.0,0.00030958,2]
[322162641,1712859078457,-500.0,0.00030958,2]
[322162642,1712859078466,-613.679858,0.00030958,2]
[322162643,1712859078476,-549.47474544,0.00030958,2]
[322162644,1712859078485,-500.0,0.00030958,2]
[322162645,1712859078495,-500.0,0.00030958,2]
[322162646,1712859078505,-500.0,0.00030958,2]
[322162647,1712859078514,-416.40508442,0.00030958,2]
[322162648,1712859078523,-1039.77,0.00030958,2]
[322162649,1712859078533,-500.0,0.00030958,2]
[322162650,1712859078542,-500.0,0.00030958,2]
[322162651,1712859078553,-500.0,0.00030958,2]
[322162652,1712859078563,-707.9,0.00030958,2]
[322162653,1712859078575,-639.20836557,0.00030958,2]
[322162654,1712859078584,-340.8259865,0.00030958,2]
[322162655,1712859078594,-500.0,0.00030958,2]
[322162656,1712859078604,-551.13,0.00030958,2]
[322162657,1712859078614,-500.0,0.00030958,2]
[322162658,1712859078623,-500.0,0.00030958,2]
[322162659,1712859078633,-500.0,0.00030958,2]
[322162660,1712859078643,-914.24,0.00030958,2]
[322162661,1712859078653,-500.0,0.00030958,2]
[322162662,1712859078663,-500.0,0.00030958,2]
[322162663,1712859078672,-500.0,0.00030958,2]
[322162664,1712859078681,-500.0,0.00030958,2]
[322162665,1712859078691,-500.0,0.00030958,2]
[322162666,1712859078700,-1057.42,0.00030958,2]
[322162667,1712859078709,-500.0,0.00030958,2]
[322162668,1712859078719,-500.0,0.00030958,2]
[322162669,1712859078728,-500.0,0.00030958,2]
[322162670,1712859078737,-500.0,0.00030958,2]
[322162671,1712859078747,-500.0,0.00030958,2]
[322162672,1712859078756,-703.96,0.00030958,2]
[322162673,1712859078765,-500.0,0.00030958,2]
[322162674,1712859078775,-825.28,0.00030958,2]
[322162675,1712859078784,-500.0,0.00030958,2]
[322162676,1712859078794,-762.19,0.00030958,2]
[322162677,1712859078803,-610.03,0.00030958,2]
[322162678,1712859078813,-500.0,0.00030958,2]
[322162679,1712859078825,-500.0,0.00030958,2]
[322162680,1712859078835,-659.45,0.00030958,2]
[322162681,1712859078844,-500.0,0.00030958,2]
[322162682,1712859078854,-500.0,0.00030958,2]
[322162683,1712859078864,-500.0,0.00030958,2]
[322162684,1712859078874,-500.0,0.00030958,2]
[322162685,1712859078883,-500.0,0.00030958,2]
[322162686,1712859078893,-500.0,0.00030958,2]
[322162687,1712859078903,-801.58,0.00030958,2]
[322162688,1712859078913,-766.28,0.00030958,2]
[322162689,1712859078923,-1089.98,0.00030958,2]
[322162690,1712859078932,-555.06,0.00030958,2]
[322162691,1712859078942,-500.0,0.00030958,2]
[322162692,1712859078951,-1022.01,0.00030958,2]
[322162693,1712859078961,-569.06452742,0.00030958,2]
[322162694,1712859078970,-500.0,0.00030958,2]
[322162695,1712859078980,-748.34,0.00030958,2]
[322162696,1712859078990,-500.0,0.00030958,2]
[322162697,1712859079000,-500.0,0.00030958,2]
[322162698,1712859079015,-500.0,0.00030958,2]
[322162699,1712859079067,-500.0,0.00030958,2]
[322162700,1712859079080,-1153.18,0.00030958,2]
[322162701,1712859079090,-500.0,0.00030958,2]
[322162702,1712859079102,-500.0,0.00030958,2]
[322162703,1712859079111,-945.99,0.00030958,2]
[322162704,1712859079121,-500.0,0.00030958,2]
[322162705,1712859079131,-500.0,0.00030958,2]
[322162706,1712859079142,-1428.79,0.00030958,2]
[322162707,1712859079153,-500.0,0.00030958,2]
[322162708,1712859079163,-500.0,0.00030958,2]
[322162709,1712859079174,-500.0,0.00030958,2]
[322162710,1712859079184,-500.0,0.00030958,2]
[322162711,1712859079194,-500.0,0.00030958,2]
[322162712,1712859079203,-500.0,0.00030958,2]
[322162713,1712859079214,-500.0,0.00030958,2]
[322162714,1712859079224,-792.97,0.00030958,2]
[322162715,1712859079234,-500.0,0.00030958,2]
[322162716,1712859079244,-368.2636965,0.00030958,2]
[322162717,1712859079253,-586.22,0.00030958,2]
[322162718,1712859079263,-506.63,0.00030958,2]
[322162719,1712859079272,-684.56,0.00030958,2]
[322162720,1712859079282,-1724.94,0.00030958,2]
[322162721,1712859079291,-609.23,0.00030958,2]
[322162722,1712859079301,-500.0,0.00030958,2]
[322162723,1712859079311,-500.0,0.00030958,2]
[322162724,1712859079324,-541.82,0.00030958,2]
[322162725,1712859079334,-1795.91,0.00030958,2]
[322162726,1712859079343,-500.0,0.00030958,2]
[322162727,1712859079353,-1400.06,0.00030958,2]
[322162728,1712859079363,-500.0,0.00030958,2]
[322162729,1712859079372,-574.63,0.00030958,2]
[322162730,1712859079381,-500.0,0.00030958,2]
[322162731,1712859079390,-731.53,0.00030958,2]
[322162732,1712859079400,-664.74,0.00030958,2]
[322162733,1712859079409,-1665.53,0.00030958,2]
[322162734,1712859079419,-2171.24,0.00030958,2]
[322162735,1712859079429,-904.3,0.00030958,2]
[322162736,1712859079439,-500.0,0.00030958,2]
[322162737,1712859079448,-500.0,0.00030958,2]
[322162738,1712859079458,-500.0,0.00030958,2]
[322162739,1712859079467,-559.12,0.00030958,2]
[322162740,1712859079477,-651.78,0.00030958,2]
[322162741,1712859079486,-1276.88,0.00030958,2]
[322162742,1712859079495,-948.26,0.00030958,2]
[322162743,1712859079504,-500.0,0.00030958,2]
[322162744,1712859079514,-500.0,0.00030958,2]
[322162745,1712859079524,-1400.05,0.00030958,2]
[322162746,1712859079533,-644.7,0.00030958,2]
[322162747,1712859079542,-500.0,0.00030958,2]
[322162748,1712859079551,-609.0,0.00030958,2]
[322162749,1712859079561,-1387.52,0.00030958,2]
[322162750,1712859079574,-884.2,0.00030958,2]
[322162751,1712859079583,-500.0,0.00030958,2]
[322162752,1712859079593,-500.0,0.00030958,2]
[322162753,1712859079603,-1096.85,0.00030958,2]
[322162754,1712859079613,-738.18,0.00030958,2]
[322162755,1712859079622,-656.85,0.00030958,2]
[322162756,1712859079632,-742.21,0.00030958,2]
[322162757,1712859079641,-232.0907181,0.00030958,2]
[322162758,1712859079651,-500.0,0.00030958,2]
[322162759,1712859079660,-884.44,0.00030958,2]
[322162760,1712859079670,-592.37,0.00030958,2]
[322162761,1712859079680,-738.09,0.00030958,2]
[322162762,1712859079689,-500.0,0.00030958,2]
[322162763,1712859079699,-549.28,0.00030958,2]
[322162764,1712859079708,-500.0,0.00030958,2]
[322162765,1712859079717,-688.89,0.00030958,2]
[322162766,1712859079727,-2048.31,0.00030958,2]
[322162767,1712859079736,-545.93239807,0.00030958,2]
[322162768,1712859079745,-500.0,0.00030958,2]
[322162769,1712859079755,-500.0,0.00030958,2]
[322162770,1712859079764,-500.0,0.00030958,2]
[322162771,1712859079774,-500.0,0.00030958,2]
[322162772,1712859079783,-500.0,0.00030958,2]
[322162773,1712859079792,-260.05045636,0.00030958,2]
[322162774,1712859079802,-1109.51,0.00030958,2]
[322162775,1712859079812,-500.0,0.00030958,2]
[322162776,1712859079825,-500.0,0.00030958,2]
[322162777,1712859079835,-883.71,0.00030958,2]
[322162778,1712859079845,-500.0,0.00030958,2]
[322162779,1712859079855,-610.08,0.00030958,2]
[322162780,1712859079865,-915.18,0.00030958,2]
[322162781,1712859079874,-1583.61,0.00030958,2]
[322162782,1712859079884,-500.0,0.00030958,2]
[322162783,1712859079897,-1225.2,0.00030958,2]
[322162784,1712859079907,-500.0,0.00030958,2]
[322162785,1712859079917,-500.0,0.00030958,2]
[322162786,1712859079927,-1275.59,0.00030958,2]
[322162787,1712859079937,-500.0,0.00030958,2]
[322162788,1712859079947,-591.61155253,0.00030958,2]
[322162789,1712859080072,-1115.43,0.00030958,2]
[322162790,1712859080082,-1228.25,0.00030958,2]
[322162791,1712859080092,-500.0,0.00030958,2]
[322162792,1712859080101,-500.0,0.00030958,2]
[322162793,1712859080111,-500.0,0.00030958,2]
[322162794,1712859080121,-862.3,0.00030958,2]
[322162795,1712859080130,-500.0,0.00030958,2]
[322162796,1712859080141,-500.0,0.00030958,2]
[322162797,1712859080151,-500.0,0.00030958,2]
[322162798,1712859080162,-500.0,0.00030958,2]
[322162799,1712859080172,-1625.5,0.00030958,2]
[322162800,1712859080182,-500.0,0.00030958,2]
[322162801,1712859080191,-500.0,0.00030958,2]
[322162802,1712859080201,-500.0,0.00030958,2]
[322162803,1712859080211,-544.22,0.00030958,2]
[322162804,1712859080221,-500.0,0.00030958,2]
[322162805,1712859080231,-500.0,0.00030958,2]
[322162806,1712859080241,-1806.2,0.00030958,2]
[322162807,1712859080251,-500.0,0.00030958,2]
[322162808,1712859080261,-286.66971166,0.00030958,2]
[322162809,1712859080271,-500.0,0.00030958,2]
[322162810,1712859080282,-500.0,0.00030958,2]
[322162811,1712859080293,-1125.36,0.00030958,2]
[322162812,1712859080303,-597.77,0.00030958,2]
[322162813,1712859080314,-500.0,0.00030958,2]
[322162814,1712859080326,-500.0,0.00030958,2]
[322162815,1712859080336,-832.01,0.00030958,2]
[322162816,1712859080348,-500.0,0.00030958,2]
[322162817,1712859080359,-500.0,0.00030958,2]
[322162818,1712859080370,-500.0,0.00030958,2]
[322162819,1712859080381,-828.7,0.00030958,2]
[322162820,1712859080392,-572.82,0.00030958,2]
[322162821,1712859080403,-914.78,0.00030958,2]
[322162822,1712859080413,-984.76,0.00030958,2]
[322162823,1712859080423,-500.0,0.00030958,2]
[322162824,1712859080433,-500.0,0.00030958,2]
[322162825,1712859080443,-500.0,0.00030958,2]
[322162826,1712859080453,-627.72,0.00030958,2]
[322162827,1712859080463,-1193.43,0.00030958,2]
[322162828,1712859080474,-1599.18,0.00030958,2]
[322162829,1712859080485,-500.0,0.00030958,2]
[322162830,1712859080495,-1143.02,0.00030958,2]
[322162831,1712859080505,-500.0,0.00030958,2]
[322162832,1712859080515,-500.0,0.00030958,2]
[322162833,1712859080524,-500.0,0.00030958,2]
[322162834,1712859080534,-835.59,0.00030958,2]
[322162835,1712859080543,-500.0,0.00030958,2]
[322162836,1712859080553,-500.0,0.00030958,2]
[322162837,1712859080564,-500.0,0.00030958,2]
[322162838,1712859080576,-1813.85,0.00030958,2]
[322162839,1712859080586,-1864.56,0.00030958,2]
[322162840,1712859080596,-500.0,0.00030958,2]
[322162841,1712859080608,-579.09,0.00030958,2]
[322162842,1712859080618,-500.0,0.00030958,2]
[322162843,1712859080628,-500.0,0.00030958,2]
[322162844,1712859080639,-500.0,0.00030958,2]
[322162845,1712859080649,-500.0,0.00030958,2]
[322162846,1712859080660,-559.93,0.00030958,2]
[322162847,1712859080669,-600.78,0.00030958,2]
[322162848,1712859080679,-500.0,0.00030958,2]
[322162849,1712859080690,-500.0,0.00030958,2]
[322162850,1712859080700,-500.0,0.00030958,2]
[322162851,1712859080711,-500.0,0.00030958,2]
[322162852,1712859080721,-500.0,0.00030958,2]
[322162853,1712859080731,-500.0,0.00030958,2]
[322162854,1712859080740,-573.89,0.00030958,2]
[322162855,1712859080750,-500.0,0.00030958,2]
[322162856,1712859080760,-500.0,0.00030958,2]
[322162857,1712859080770,-753.65,0.00030958,2]
[322162858,1712859080781,-518.05,0.00030958,2]
[322162859,1712859080792,-500.0,0.00030958,2]
[322162860,1712859080801,-500.0,0.00030958,2]
[322162861,1712859080810,-1827.34,0.00030958,2]
[322162862,1712859080819,-907.37,0.00030958,2]
[322162863,1712859080829,-551.99,0.00030958,2]
[322162864,1712859080839,-607.86,0.00030958,2]
[322162865,1712859080850,-500.0,0.00030958,2]
[322162866,1712859080860,-2443.71,0.00030958,2]
[322162867,1712859080870,-500.0,0.00030958,2]
[322162868,1712859080881,-896.75,0.00030958,2]
[322162869,1712859080892,-500.0,0.00030958,2]
[322162870,1712859080902,-1313.17,0.00030958,2]
[322162871,1712859080913,-500.0,0.00030958,2]
[322162872,1712859080923,-1482.19,0.00030958,2]
[322162873,1712859080933,-1039.9,0.00030958,2]
[322162874,1712859080944,-177.6593878,0.00030958,2]
[322162875,1712859080955,-2119.38,0.00030958,2]
[322162876,1712859080966,-1677.15,0.00030958,2]
[322162877,1712859080979,-500.0,0.00030958,2]
[322162878,1712859080988,-500.0,0.00030958,2]
[322162879,1712859080997,-500.0,0.00030958,2]
[322162880,1712859081006,-500.0,0.00030958,2]
[322162881,1712859081016,-770.36,0.00030958,2]
[322162882,1712859081026,-500.0,0.00030958,2]
[322162883,1712859081035,-500.0,0.00030958,2]
[322162884,1712859081045,-500.0,0.00030958,2]
[322162885,1712859081054,-735.88,0.00030958,2]
[322162886,1712859081064,-1331.76,0.00030958,2]
[322162887,1712859081074,-500.0,0.00030958,2]
[322162888,1712859081083,-1216.17,0.00030958,2]
[322162889,1712859081093,-500.0,0.00030958,2]
[322162890,1712859081102,-951.07,0.00030958,2]
[322162891,1712859081113,-500.0,0.00030958,2]
[322162892,1712859081123,-500.0,0.00030958,2]
[322162893,1712859081134,-702.69,0.00030958,2]
[322162894,1712859081145,-500.0,0.00030958,2]
[322162895,1712859081158,-500.0,0.00030958,2]
[322162896,1712859081169,-500.0,0.00030958,2]
[322162897,1712859081181,-500.0,0.00030958,2]
[322162898,1712859081195,-1412.18,0.00030958,2]
[322162899,1712859081205,-627.43,0.00030958,2]
[322162900,1712859081218,-530.68,0.00030958,2]
[322162901,1712859081230,-500.0,0.00030958,2]
[322162902,1712859081240,-500.0,0.00030958,2]
[322162903,1712859081251,-500.0,0.00030958,2]
[322162904,1712859081261,-732.88,0.00030958,2]
[322162905,1712859081271,-500.0,0.00030958,2]
[322162906,1712859081281,-500.0,0.00030958,2]
[322162907,1712859081291,-500.0,0.00030958,2]
[322162908,1712859081300,-500.0,0.00030958,2]
[322162909,1712859081309,-1274.05,0.00030958,2]
[322162910,1712859081319,-2012.46,0.00030958,2]
[322162911,1712859081329,-500.0,0.00030958,2]
[322162912,1712859081338,-984.39,0.00030958,2]
[322162913,1712859081347,-520.64,0.00030958,2]
[322162914,1712859081357,-500.0,0.00030958,2]
[322162915,1712859081366,-862.7,0.00030958,2]
[322162916,1712859081376,-1127.21,0.00030958,2]
[322162917,1712859081385,-500.0,0.00030958,2]
[322162918,1712859081394,-1330.54,0.00030958,2]
[322162919,1712859081404,-611.97339588,0.00030958,2]
[322162920,1712859081414,-913.4,0.00030958,2]
[322162921,1712859081423,-500.0,0.00030958,2]
[322162922,1712859081433,-960.05,0.00030958,2]
[322162923,1712859081443,-279.83577357,0.00030958,2]
[322162924,1712859081453,-1052.25,0.00030958,2]
[322162925,1712859081462,-500.0,0.00030958,2]
[322162926,1712859081472,-779.52,0.00030958,2]
[322162927,1712859081482,-500.0,0.00030958,2]
[322162928,1712859081491,-500.0,0.00030958,2]
[322162929,1712859081502,-351.87124883,0.00030958,2]
[322162930,1712859081512,-500.0,0.00030958,2]
[322162931,1712859081521,-713.28,0.00030958,2]